bitfinex/quotes_SOLUSD_20230110
["timestamp","ask_amount","ask_price","bid_price","bid_amount"]
[1673387121040,108.1955,16.51,16.493,62.5]
[1673387121248,108.1955,16.51,16.5,25.03]
[1673387121483,20.0,16.509,16.501,65.48]
[1673387122098,108.1955,16.51,16.501,65.48]
[1673387122521,20.0,16.509,16.501,65.48]
[1673387123345,17.0,16.508,16.501,65.48]
[1673387123558,20.0,16.509,16.501,65.48]
[1673387124935,17.0,16.508,16.501,65.48]
[1673387129357,17.0,16.508,16.501,64.98]
[1673387130390,20.0,16.507,16.501,19.5]
[1673387130602,17.0,16.506,16.501,19.5]
[1673387133127,25.14,16.53,16.502,20.0]
[1673387133349,20.0,16.523,16.504,19.5]
[1673387133546,20.0,16.519,16.505,45.46]
[1673387133759,19.5,16.519,16.506,20.0]
[1673387133969,19.5,16.519,16.507,45.46]
[1673387134181,19.5,16.519,16.508,20.0]
[1673387134403,19.5,16.519,16.509,45.45]
[1673387134591,19.5,16.519,16.51,20.0]
[1673387135326,19.5,16.519,16.508,20.0]
[1673387135534,19.5,16.519,16.509,45.45]
[1673387135746,17.0,16.518,16.51,20.0]
[1673387136177,17.0,16.518,16.506,20.0]
[1673387136387,17.0,16.518,16.507,45.46]
[1673387136603,17.0,16.518,16.508,20.0]
[1673387136915,17.0,16.518,16.509,45.45]
[1673387137131,17.0,16.518,16.51,20.0]
[1673387137657,19.5,16.519,16.507,45.46]
[1673387137658,19.5,16.519,16.508,20.0]
[1673387137866,19.5,16.519,16.509,45.45]
[1673387138078,19.5,16.519,16.51,20.0]
[1673387138607,19.5,16.519,16.506,20.0]
[1673387138796,19.5,16.519,16.504,65.47]
[1673387139010,62.43,16.518,16.504,65.47]
[1673387139213,20.0,16.517,16.504,65.47]
[1673387139424,20.0,16.515,16.504,65.47]
[1673387139635,17.0,16.514,16.504,65.47]
[1673387141117,6.0803818,16.521,16.505,29.55746296]
[1673387141319,0.0003818,16.521,16.511,20.0]
[1673387141533,0.0003818,16.521,16.512,65.44]
[1673387141840,0.0003818,16.521,16.513,20.0]
[1673387142056,114.4731,16.528,16.514,65.44]
[1673387142266,114.4731,16.528,16.52,25.03]
[1673387142475,114.4731,16.528,16.521,65.42]
[1673387143520,156.3098,16.533,16.521,65.42]
[1673387143741,20.0,16.536,16.522,9.55746296]
[1673387143964,65.38,16.536,16.523,65.41]
[1673387144363,65.38,16.536,16.523,20.0]
[1673387144904,17.0,16.535,16.523,20.0]
[1673387145101,20.0,16.534,16.523,20.0]
[1673387145306,17.0,16.533,16.523,20.0]
[1673387145530,20.0,16.534,16.523,20.0]
[1673387146907,17.0,16.533,16.523,20.0]
[1673387148692,45.38,16.536,16.524,41.09712269]
[1673387148902,114.4731,16.537,16.524,41.09712269]
[1673387148903,114.4731,16.537,16.53,24.96]
[1673387149110,114.4731,16.537,16.531,20.0]
[1673387149637,20.0,16.536,16.531,20.0]
[1673387150043,17.0,16.535,16.531,20.0]
[1673387152474,17.0,16.535,16.525,45.41]
[1673387152682,17.0,16.535,16.52,124.77]
[1673387152683,20.0,16.533,16.521,45.42]
[1673387152896,20.0,16.533,16.52,24.93]
[1673387152897,17.0,16.532,16.52,24.93]
[1673387153309,17.0,16.532,16.521,45.42]
[1673387154148,20.0,16.531,16.521,45.42]
[1673387154360,17.0,16.53,16.521,45.42]
[1673387155189,17.0,16.53,16.522,20.0]
[1673387155730,111.4279,16.533,16.522,20.0]
[1673387155937,65.38,16.537,16.524,20.0]
[1673387156137,20.0,16.537,16.525,65.41]
[1673387156353,20.0,16.537,16.525,55.26800936]
[1673387157306,17.0,16.536,16.526,45.41]
[1673387157623,17.0,16.536,16.527,20.0]
[1673387157821,45.37,16.538,16.527,20.0]
[1673387158022,20.0,16.537,16.527,20.0]
[1673387158235,20.0,16.535,16.527,20.0]
[1673387158455,20.0,16.535,16.526,20.0]
[1673387159190,17.0,16.534,16.526,20.0]
[1673387162436,20.0,16.535,16.527,45.4]
[1673387162770,20.0,16.538,16.528,20.0]
[1673387164876,17.0,16.537,16.528,20.0]
[1673387166755,17.0,16.537,16.528,55.26800936]
[1673387169287,20.0,16.536,16.528,55.26800936]
[1673387169477,24.97,16.55,16.53,24.8]
[1673387169691,111.9203,16.547,16.531,65.39]
[1673387169903,20.0,16.546,16.532,20.0]
[1673387170132,20.0,16.546,16.533,65.39]
[1673387170322,20.0,16.546,16.533,102.53155202]
[1673387170535,20.0,16.546,16.534,37.14155202]
[1673387170749,20.0,16.546,16.535,65.38]
[1673387171176,20.0,16.544,16.535,45.38]
[1673387171391,20.0,16.544,16.531,45.39]
[1673387171581,20.0,16.542,16.531,45.39]
[1673387171792,17.0,16.541,16.531,45.39]
[1673387172227,20.0,16.54,16.531,45.39]
[1673387172444,17.0,16.539,16.531,45.39]
[1673387173598,17.0,16.539,16.531,82.53155202]
[1673387174007,20.0,16.544,16.532,20.0]
[1673387174218,20.0,16.544,16.533,45.39]
[1673387174439,20.0,16.544,16.533,82.53155202]
[1673387174628,20.0,16.544,16.534,57.14155202]
[1673387174842,26.0803818,16.545,16.534,57.14155202]
[1673387175057,26.0803818,16.545,16.535,82.52155202]
[1673387175278,26.0803818,16.545,16.536,20.0]
[1673387175704,17.0,16.544,16.536,20.0]
[1673387177596,17.0,16.544,16.535,37.14155202]
[1673387177810,20.0,16.542,16.531,45.39]
[1673387178028,20.0,16.54,16.531,45.39]
[1673387178540,17.0,16.539,16.531,45.39]
[1673387179795,17.0,16.539,16.531,82.53155202]
[1673387180538,17.0,16.54,16.532,20.0]
[1673387183569,20.0,16.539,16.532,20.0]
[1673387183779,17.0,16.538,16.532,20.0]
[1673387184001,17.0,16.538,16.53,62.20155202]
[1673387184002,17.0,16.538,16.531,20.0]
[1673387184214,6.0803818,16.545,16.532,45.39]
[1673387184404,6.0803818,16.545,16.54,24.88]
[1673387184615,6.0803818,16.545,16.541,20.0]
[1673387185371,6.0803818,16.545,16.535,20.0]
[1673387185580,6.0803818,16.545,16.536,45.38]
[1673387185785,6.0803818,16.545,16.533,20.0]
[1673387185786,6.0803818,16.545,16.537,20.0]
[1673387185994,17.0,16.544,16.538,45.37]
[1673387186197,17.0,16.544,16.539,20.0]
[1673387186610,17.0,16.544,16.537,65.38]
[1673387187474,17.0,16.544,16.538,20.0]
[1673387187794,17.0,16.544,16.539,65.37]
[1673387188313,17.0,16.544,16.539,20.0]
[1673387188523,17.0,16.544,16.538,20.0]
[1673387188710,17.0,16.544,16.539,45.37]
[1673387188919,17.0,16.544,16.54,20.0]
[1673387189354,6.0803818,16.545,16.54,20.0]
[1673387189573,6.0803818,16.545,16.538,20.0]
[1673387189890,6.0803818,16.545,16.539,45.37]
[1673387190070,6.0803818,16.545,16.54,20.0]
[1673387190748,6.0803818,16.545,16.538,20.0]
[1673387190930,6.0803818,16.545,16.539,45.37]
[1673387191141,6.0803818,16.545,16.54,20.0]
[1673387191895,6.0803818,16.545,16.536,20.0]
[1673387192095,6.0803818,16.545,16.537,45.38]
[1673387192305,6.0803818,16.545,16.538,20.0]
[1673387192523,6.0803818,16.545,16.539,45.37]
[1673387192842,6.0803818,16.545,16.54,20.0]
[1673387193243,6.0803818,16.545,16.536,20.0]
[1673387193244,6.0803818,16.545,16.537,20.0]
[1673387193456,17.0,16.544,16.536,20.0]
[1673387193667,17.0,16.544,16.535,20.0]
[1673387193895,17.0,16.544,16.534,20.0]
[1673387194108,17.0,16.544,16.535,45.38]
[1673387194414,17.0,16.544,16.536,20.0]
[1673387195046,17.0,16.544,16.533,45.39]
[1673387195047,17.0,16.544,16.534,20.0]
[1673387195253,17.0,16.544,16.535,45.38]
[1673387195568,17.0,16.544,16.536,20.0]
[1673387196193,17.0,16.544,16.534,20.0]
[1673387196397,17.0,16.544,16.535,45.38]
[1673387196616,17.0,16.544,16.536,20.0]
[1673387197144,17.0,16.544,16.534,20.0]
[1673387197346,17.0,16.544,16.535,45.38]
[1673387197557,17.0,16.544,16.536,20.0]
[1673387198414,17.0,16.544,16.534,20.0]
[1673387198620,17.0,16.544,16.535,45.38]
[1673387198813,17.0,16.544,16.536,20.0]
[1673387199444,6.0803818,16.545,16.537,45.38]
[1673387199660,6.0803818,16.545,16.54,124.46]
[1673387199864,6.0803818,16.545,16.541,65.37]
[1673387200492,3.5803818,16.545,16.541,20.0]
[1673387200938,3.5803818,16.545,16.541,65.37]
[1673387202804,3.5803818,16.545,16.541,20.0]
[1673387203654,3.5803818,16.545,16.541,65.37]
[1673387203858,3.5803818,16.545,16.541,20.0]
[1673387205218,3.5803818,16.545,16.541,29.81103874]
[1673387205874,3.5803818,16.545,16.541,20.0]
[1673387207876,8.18e-05,16.545,16.542,20.0]
[1673387208059,8.18e-05,16.545,16.543,20.0]
[1673387209639,8.18e-05,16.545,16.544,29.81103874]
[1673387209872,8.18e-05,16.545,16.544,20.0]
[1673387210286,17.5000818,16.553,16.543,20.0]
[1673387210941,17.0,16.552,16.543,20.0]
[1673387211140,17.0,16.552,16.542,20.0]
[1673387212101,20.0,16.551,16.542,20.0]
[1673387213252,20.0,16.551,16.542,29.81103874]
[1673387213472,17.0,16.55,16.542,29.81103874]
[1673387214303,20.0,16.549,16.542,29.81103874]
[1673387215340,17.0,16.55,16.542,29.81103874]
[1673387217785,17.0,16.55,16.542,20.0]
[1673387218396,17.0,16.55,16.542,29.81103874]
[1673387220726,17.0,16.55,16.542,20.0]
[1673387220936,17.0,16.55,16.541,20.0]
[1673387220937,20.0,16.549,16.541,20.0]
[1673387222409,248.04,16.549,16.541,20.0]
[1673387222624,17.0,16.55,16.533,40.0]
[1673387222837,17.0,16.55,16.54,24.7]
[1673387223051,115.9079,16.56,16.542,20.0]
[1673387223265,115.9079,16.56,16.543,65.36]
[1673387223587,65.32,16.559,16.544,20.0]
[1673387223788,65.32,16.559,16.545,65.35]
[1673387224741,20.0,16.559,16.545,65.35]
[1673387225481,133.1364,16.558,16.545,65.35]
[1673387226417,133.1364,16.558,16.545,20.0]
[1673387226622,65.32,16.557,16.544,20.0]
[1673387227461,65.32,16.557,16.543,20.0]
[1673387227787,65.32,16.557,16.544,20.0]
[1673387228829,65.32,16.557,16.544,65.36]
[1673387229036,65.32,16.557,16.545,20.0]
[1673387232704,17.0,16.555,16.545,20.0]
[1673387235023,17.0,16.555,16.544,20.0]
[1673387235238,17.0,16.555,16.545,45.35]
[1673387235448,17.0,16.555,16.546,20.0]
[1673387236172,17.0,16.555,16.545,20.0]
[1673387240492,69.28691798,16.57,16.546,45.35]
[1673387240701,108.258,16.565,16.55,124.28]
[1673387240898,108.258,16.565,16.551,85.34]
[1673387241112,108.258,16.565,16.551,122.27475159]
[1673387241321,65.3,16.564,16.551,102.27475159]
[1673387241542,65.3,16.564,16.551,20.0]
[1673387241747,20.0,16.563,16.551,20.0]
[1673387241946,45.31,16.562,16.551,20.0]
[1673387242159,20.0,16.561,16.551,20.0]
[1673387242366,45.31,16.562,16.551,20.0]
[1673387242577,20.0,16.563,16.551,65.34]
[1673387242887,20.0,16.563,16.551,102.27475159]
[1673387244478,17.0,16.562,16.551,20.0]
[1673387244797,20.0,16.56,16.552,20.0]
[1673387245011,20.0,16.56,16.55,24.78]
[1673387245201,133.716,16.56,16.551,20.0]
[1673387245533,113.716,16.56,16.551,20.0]
[1673387245751,113.716,16.56,16.551,65.34]
[1673387245958,113.716,16.56,16.551,20.0]
[1673387248472,17.0,16.562,16.551,65.34]
[1673387248686,108.258,16.565,16.552,20.0]
[1673387248937,108.258,16.565,16.553,45.33]
[1673387249229,20.0,16.564,16.553,45.33]
[1673387249433,65.3,16.564,16.551,65.34]
[1673387249960,17.0,16.563,16.551,65.34]
[1673387252575,20.0,16.562,16.551,65.34]
[1673387253844,17.0,16.561,16.551,20.0]
[1673387257179,20.0,16.56,16.551,20.0]
[1673387257390,17.0,16.559,16.551,20.0]
[1673387258015,20.0,16.558,16.551,20.0]
[1673387258217,128.0025,16.56,16.551,20.0]
[1673387258435,128.0025,16.56,16.552,43.04]
[1673387258644,128.0025,16.56,16.553,20.0]
[1673387258959,17.0,16.559,16.553,20.0]
[1673387259169,17.0,16.559,16.552,20.0]
[1673387259381,20.0,16.558,16.552,20.0]
[1673387259708,17.0,16.557,16.552,20.0]
[1673387259913,17.0,16.557,16.551,20.0]
[1673387260547,17.0,16.557,16.54,99.64]
[1673387260548,20.0,16.556,16.54,99.64]
[1673387260756,6.0803818,16.57,16.55,124.34]
[1673387260946,6.0803818,16.57,16.56,24.78]
[1673387261161,116.9058,16.569,16.56,24.78]
[1673387261788,20.0,16.568,16.56,24.78]
[1673387262206,20.0,16.568,16.561,20.0]
[1673387263065,6.0803818,16.57,16.561,20.0]
[1673387263811,20.0,16.569,16.561,20.0]
[1673387265174,6.0803818,16.57,16.561,20.0]
[1673387265594,6.0803818,16.57,16.561,96.23028889]
[1673387266127,20.0,16.569,16.561,20.0]
[1673387266623,17.0,16.568,16.558,20.0]
[1673387267153,20.0,16.567,16.558,20.0]
[1673387268324,20.0,16.567,16.552,9.81103874]
[1673387268534,20.0,16.565,16.552,9.81103874]
[1673387268844,245.0,16.564,16.55,24.93]
[1673387269061,20.0,16.563,16.55,24.93]
[1673387269284,62.31,16.562,16.55,24.93]
[1673387269795,20.0,16.561,16.55,24.93]
[1673387269982,62.31,16.56,16.55,24.93]
[1673387270319,20.0,16.559,16.551,20.0]
[1673387270540,17.0,16.558,16.551,20.0]
[1673387270740,17.0,16.558,16.55,24.93]
[1673387270954,20.0,16.557,16.55,24.93]
[1673387271145,17.0,16.556,16.55,24.93]
[1673387271778,62.32,16.556,16.542,39.61]
[1673387271991,20.0,16.555,16.541,38.9]
[1673387272200,17.0,16.554,16.541,38.9]
[1673387272410,20.0,16.553,16.541,38.9]
[1673387272634,20.0,16.551,16.541,38.9]
[1673387272947,17.0,16.55,16.541,38.9]
[1673387273573,111.308,16.554,16.541,38.9]
[1673387273786,111.308,16.554,16.542,29.81103874]
[1673387273986,111.308,16.554,16.544,20.0]
[1673387274311,111.308,16.554,16.545,62.38]
[1673387274725,20.0,16.559,16.545,62.38]
[1673387274934,133.3256,16.559,16.545,62.38]
[1673387275462,17.0,16.557,16.545,42.38]
[1673387275675,20.0,16.556,16.546,20.0]
[1673387275889,17.0,16.555,16.547,44.25]
[1673387276206,17.0,16.555,16.548,20.0]
[1673387276610,17.0,16.555,16.545,20.0]
[1673387277785,17.0,16.555,16.544,64.91]
[1673387279759,17.0,16.555,16.544,44.91]
[1673387279980,20.0,16.554,16.542,41.96]
[1673387280602,20.0,16.554,16.54,151.56818222]
[1673387280603,20.0,16.554,16.541,41.75]
[1673387281558,17.0,16.555,16.541,41.75]
[1673387281776,17.0,16.556,16.542,20.0]
[1673387281983,17.0,16.557,16.543,42.61]
[1673387282196,17.0,16.557,16.544,20.0]
[1673387282399,17.0,16.557,16.545,43.08]
[1673387282611,17.0,16.557,16.546,20.0]
[1673387283025,17.0,16.557,16.547,42.98]
[1673387283232,17.0,16.557,16.548,20.0]
[1673387283560,20.0,16.558,16.548,20.0]
[1673387283877,20.0,16.558,16.546,20.0]
[1673387284084,20.0,16.558,16.547,42.96]
[1673387284311,20.0,16.558,16.548,20.0]
[1673387284807,17.0,16.557,16.548,20.0]
[1673387285005,17.0,16.557,16.545,20.0]
[1673387285215,17.0,16.557,16.546,42.95]
[1673387285429,17.0,16.557,16.547,20.0]
[1673387286079,17.0,16.557,16.545,20.0]
[1673387286294,17.0,16.557,16.546,43.28]
[1673387286485,17.0,16.557,16.547,20.0]
[1673387287118,17.0,16.557,16.545,20.0]
[1673387287447,17.0,16.557,16.546,43.45]
[1673387287639,17.0,16.557,16.547,20.0]
[1673387288181,17.0,16.557,16.545,20.0]
[1673387288400,17.0,16.557,16.546,43.0]
[1673387288582,17.0,16.557,16.547,20.0]
[1673387289222,17.0,16.557,16.545,20.0]
[1673387289530,17.0,16.557,16.546,42.44]
[1673387289739,17.0,16.557,16.547,20.0]
[1673387290267,17.0,16.557,16.541,41.83]
[1673387290268,228.02,16.556,16.541,41.83]
[1673387290478,37.0,16.555,16.54,25.02]
[1673387290810,20.0,16.553,16.541,42.54]
[1673387291026,17.0,16.552,16.541,42.54]
[1673387291543,116.0954,16.551,16.541,42.54]
[1673387291733,17.0,16.55,16.541,42.54]
[1673387292371,37.0,16.55,16.541,42.54]
[1673387294178,37.0,16.55,16.542,20.0]
[1673387296149,20.0,16.549,16.542,20.0]
[1673387296366,17.0,16.548,16.542,20.0]
[1673387297108,116.0954,16.551,16.542,20.0]
[1673387297333,17.0,16.55,16.543,45.36]
[1673387298600,202.7,16.568,16.544,20.0]
[1673387298780,108.5285,16.562,16.55,24.9]
[1673387298982,108.5285,16.562,16.551,45.34]
[1673387299328,108.5285,16.562,16.552,9.81103874]
[1673387300140,108.5285,16.562,16.553,20.0]
[1673387300559,17.0,16.559,16.553,20.0]
[1673387301214,37.0,16.559,16.553,20.0]
[1673387301733,37.0,16.559,16.551,20.0]
[1673387303940,108.5285,16.562,16.552,9.81103874]
[1673387305222,108.5285,16.562,16.551,20.0]
[1673387305432,108.5285,16.562,16.552,9.81103874]
[1673387307729,20.0,16.561,16.552,9.81103874]
[1673387309090,6.0803818,16.57,16.553,45.33]
[1673387309313,6.0803818,16.57,16.56,24.82]
[1673387309717,6.0803818,16.57,16.561,36.54984889]
[1673387309930,6.0803818,16.57,16.561,46.36088763]
[1673387310141,6.0803818,16.57,16.562,29.81103874]
[1673387310457,6.0803818,16.57,16.562,66.36088763]
[1673387311506,6.0803818,16.57,16.563,20.0]
[1673387311937,6.0803818,16.57,16.564,9.81103874]
[1673387315400,6.0803818,16.57,16.563,20.0]
[1673387316258,6.0803818,16.57,16.563,29.81103874]
[1673387316783,6.0803818,16.57,16.563,9.81103874]
[1673387318564,6.0803818,16.57,16.562,20.0]
[1673387319510,6.0803818,16.57,16.562,56.54984889]
[1673387319721,6.0803818,16.57,16.563,101.80109188]
[1673387319914,109.4477,16.576,16.565,20.0]
[1673387320124,109.4477,16.576,16.57,24.9]
[1673387320335,109.4477,16.576,16.566,65.3]
[1673387320336,109.4477,16.576,16.571,20.0]
[1673387320558,109.4477,16.576,16.566,65.3]
[1673387321280,109.4477,16.576,16.566,101.84984889]
[1673387321491,108.9477,16.576,16.566,101.84984889]
[1673387322244,108.9477,16.576,16.567,20.0]
[1673387322438,108.9477,16.576,16.568,65.29]
[1673387322647,108.9477,16.576,16.569,20.0]
[1673387323485,108.9477,16.576,16.568,20.0]
[1673387323696,243.22,16.586,16.57,24.81]
[1673387323911,20.0,16.585,16.571,20.0]
[1673387324440,45.25,16.584,16.571,20.0]
[1673387324648,20.0,16.583,16.571,20.0]
[1673387324872,17.0,16.582,16.571,20.0]
[1673387326012,45.25,16.584,16.571,20.0]
[1673387326223,45.24,16.586,16.573,20.0]
[1673387326539,45.23,16.589,16.574,75.08103874]
[1673387326745,20.0,16.586,16.574,29.81103874]
[1673387326956,20.0,16.586,16.575,9.81103874]
[1673387327167,20.0,16.586,16.576,20.0]
[1673387327378,17.0,16.585,16.576,20.0]
[1673387327588,160.8273,16.587,16.576,29.81103874]
[1673387327791,115.5873,16.587,16.58,24.9]
[1673387328019,115.5873,16.587,16.581,20.0]
[1673387328869,17.0,16.586,16.581,20.0]
[1673387329504,115.5873,16.587,16.581,20.0]
[1673387329920,65.24,16.586,16.571,65.28]
[1673387330876,17.0,16.585,16.571,65.28]
[1673387331059,199.7,16.585,16.571,45.28]
[1673387331271,182.7,16.583,16.56,124.19]
[1673387331492,20.0,16.58,16.56,124.19]
[1673387331797,20.0,16.577,16.56,134.00103874]
[1673387332018,182.7,16.575,16.56,134.00103874]
[1673387332233,202.7,16.573,16.56,133.96103874]
[1673387332430,62.28,16.572,16.56,133.68103874]
[1673387332641,20.0,16.571,16.56,133.68103874]
[1673387332847,17.0,16.57,16.56,133.68103874]
[1673387333062,17.0,16.57,16.56,34.50103874]
[1673387334024,45.28,16.572,16.561,20.0]
[1673387334237,45.28,16.572,16.56,133.82103874]
[1673387334437,20.0,16.571,16.562,9.81103874]
[1673387335513,17.0,16.57,16.562,9.81103874]
[1673387336423,17.0,16.571,16.562,9.81103874]
[1673387337074,17.0,16.572,16.562,9.81103874]
[1673387337789,62.28,16.572,16.562,9.81103874]
[1673387338021,17.0,16.572,16.562,9.81103874]
[1673387342126,243.22,16.569,16.553,45.33]
[1673387342344,82.29,16.568,16.551,45.34]
[1673387342979,20.0,16.566,16.551,45.34]
[1673387343170,174.2914,16.565,16.55,24.97]
[1673387343378,20.0,16.564,16.55,24.97]
[1673387343592,62.3,16.563,16.55,24.97]
[1673387344023,20.0,16.562,16.55,24.97]
[1673387344235,20.0,16.577,16.551,20.0]
[1673387344451,111.9914,16.572,16.56,123.93]
[1673387344764,111.9914,16.572,16.561,65.31]
[1673387345371,116.0515,16.578,16.562,20.0]
[1673387345583,119.0803,16.577,16.564,20.0]
[1673387345805,119.0803,16.577,16.566,20.0]
[1673387346019,119.0803,16.577,16.567,45.29]
[1673387346228,119.0803,16.577,16.568,20.0]
[1673387346753,119.0803,16.577,16.567,20.0]
[1673387346963,17.0,16.576,16.567,20.0]
[1673387347176,17.0,16.576,16.566,20.0]
[1673387347496,119.0803,16.577,16.566,20.0]
[1673387347690,119.0803,16.577,16.567,20.0]
[1673387348017,119.0803,16.577,16.566,40.0]
[1673387348631,17.0,16.576,16.566,40.0]
[1673387349163,17.0,16.576,16.566,20.0]
[1673387350956,20.0,16.575,16.566,20.0]
[1673387351152,17.0,16.574,16.566,20.0]
[1673387351368,17.0,16.574,16.564,20.0]
[1673387351797,17.0,16.574,16.562,45.31]
[1673387352012,17.0,16.574,16.565,45.3]
[1673387352227,17.0,16.574,16.566,20.0]
[1673387352439,17.0,16.574,16.563,20.0]
[1673387353045,17.0,16.574,16.564,45.3]
[1673387353263,17.0,16.574,16.561,45.31]
[1673387353264,20.0,16.573,16.561,45.31]
[1673387353482,17.0,16.572,16.562,20.0]
[1673387353991,17.0,16.572,16.561,45.31]
[1673387354210,20.0,16.571,16.561,45.31]
[1673387354434,17.0,16.57,16.561,45.31]
[1673387355359,20.0,16.575,16.561,45.31]
[1673387355574,20.0,16.575,16.561,54.56266289]
[1673387355816,20.0,16.575,16.562,9.25266289]
[1673387356005,20.0,16.575,16.563,45.3]
[1673387356205,20.0,16.575,16.564,20.0]
[1673387356415,20.0,16.575,16.565,45.3]
[1673387356626,20.0,16.575,16.566,20.0]
[1673387357149,17.0,16.574,16.566,20.0]
[1673387357898,20.0,16.575,16.566,20.0]
[1673387359387,17.0,16.574,16.566,20.0]
[1673387360422,17.0,16.574,16.561,45.31]
[1673387360423,20.0,16.573,16.561,45.31]
[1673387360642,17.0,16.572,16.561,45.31]
[1673387362002,17.0,16.572,16.562,20.0]
[1673387362213,20.0,16.571,16.562,20.0]
[1673387362421,17.0,16.57,16.562,20.0]
[1673387362636,17.0,16.57,16.561,65.31]
[1673387363173,17.0,16.57,16.561,20.0]
[1673387363580,17.0,16.57,16.561,65.31]
[1673387370296,17.0,16.57,16.561,74.56266289]
[1673387371034,17.0,16.57,16.561,65.31]
[1673387373369,17.0,16.57,16.561,20.0]
[1673387373678,20.0,16.569,16.557,20.0]
[1673387373886,20.0,16.567,16.558,45.32]
[1673387374078,17.0,16.566,16.559,20.0]
[1673387374715,17.0,16.566,16.556,20.0]
[1673387374929,17.0,16.566,16.557,45.32]
[1673387375251,17.0,16.566,16.558,20.0]
[1673387375453,12.0,16.566,16.558,20.0]
[1673387375664,12.0,16.566,16.557,20.0]
[1673387375858,12.0,16.566,16.558,45.32]
[1673387376068,12.0,16.566,16.559,20.0]
[1673387376705,12.0,16.566,16.56,45.31]
[1673387376932,12.0,16.566,16.561,20.0]
[1673387377538,12.0,16.566,16.557,20.0]
[1673387377749,12.0,16.566,16.558,45.32]
[1673387377979,12.0,16.566,16.559,20.0]
[1673387378697,12.0,16.566,16.555,20.0]
[1673387378906,12.0,16.566,16.556,45.32]
[1673387379119,12.0,16.566,16.557,20.0]
[1673387379327,12.0,16.566,16.558,45.32]
[1673387379557,12.0,16.566,16.559,20.0]
[1673387380289,12.0,16.566,16.557,20.0]
[1673387380503,12.0,16.566,16.558,45.32]
[1673387380688,12.0,16.566,16.559,20.0]
[1673387380902,20.0,16.567,16.559,20.0]
[1673387381234,60.52,16.558,16.54,24.88]
[1673387381450,182.7,16.553,16.53,124.01]
[1673387381646,228.03,16.553,16.531,20.0]
[1673387381980,20.0,16.552,16.532,45.39]
[1673387382184,17.0,16.551,16.532,45.39]